[Event "Titled Tuesday Blitz July 18 Late 2023"]
[White "Rodriguez Santiago, Jaime"]
[Black "Winkels, Marcel"]
[WhiteFideId "3100898"]
[BlackFideId "1003887"]
[WhiteElo "2358"]
[BlackElo "2057"]
[Result "1-0"]
[Round "3"]
[TimeControl "180+2"]
[Date "2023.07.18"]
[WhiteClock "0:00:16"]
[BlackClock "0:00:00"]
[Board "187"]

1. c4 {[%clk 0:03:00]}  c5 {[%clk 0:02:59]} 2. Nc3 {[%clk 0:03:00]}  Nc6 {[%clk 0:03:00]} 3. g3 {[%clk 0:03:00]}  g6 {[%clk 0:03:01]} 4. Bg2 {[%clk 0:03:00]}  Bg7 {[%clk 0:03:01]} 5. e4 {[%clk 0:03:01]}  d6 {[%clk 0:03:02]} 6. Nge2 {[%clk 0:03:01]}  e5 {[%clk 0:03:03]} 7. d3 {[%clk 0:03:02]}  Nge7 {[%clk 0:03:03]} 8. a3 {[%clk 0:03:01]}  O-O {[%clk 0:03:04]} 9. O-O {[%clk 0:03:01]}  Rb8 {[%clk 0:03:03]} 10. Rb1 {[%clk 0:03:01]}  a5 {[%clk 0:03:03]} 11. Be3 {[%clk 0:02:57]}  Nd4 {[%clk 0:03:02]} 12. f4 {[%clk 0:02:57]}  f5 {[%clk 0:02:58]} 13. b4 {[%clk 0:02:56]}  axb4 {[%clk 0:02:53]} 14. axb4 {[%clk 0:02:55]}  Nec6 {[%clk 0:02:52]} 15. b5 {[%clk 0:02:43]}  Nb4 {[%clk 0:02:39]} 16. Nd5 {[%clk 0:02:28]}  Nxd5 {[%clk 0:02:36]} 17. exd5 {[%clk 0:02:21]}  Re8 {[%clk 0:02:25]} 18. Nxd4 {[%clk 0:02:19]}  exd4 {[%clk 0:02:19]} 19. Bd2 {[%clk 0:02:18]}  Ra8 {[%clk 0:02:06]} 20. Qb3 {[%clk 0:01:59]}  Re2 {[%clk 0:01:58]} 21. Rf2 {[%clk 0:01:56]}  Qe7 {[%clk 0:01:51]} 22. Bf3 {[%clk 0:01:51]}  Rxf2 {[%clk 0:01:49]} 23. Kxf2 {[%clk 0:01:52]}  h6 {[%clk 0:01:42]} 24. Re1 {[%clk 0:01:51]}  Qd8 {[%clk 0:01:35]} 25. Re2 {[%clk 0:01:29]}  g5 {[%clk 0:01:32]} 26. Bh5 {[%clk 0:01:27]}  Bd7 {[%clk 0:01:26]} 27. Qd1 {[%clk 0:01:24]}  Ra2 {[%clk 0:01:05]} 28. Qe1 {[%clk 0:01:17]}  Kh7 {[%clk 0:00:51]} 29. Kg1 {[%clk 0:01:13]}  Qa8 {[%clk 0:00:47]} 30. Re7 {[%clk 0:01:06]}  Ra1 {[%clk 0:00:42]} 31. Bd1 {[%clk 0:01:05]}  Qd8 {[%clk 0:00:37]} 32. Kf2 {[%clk 0:00:59]}  Rxd1 {[%clk 0:00:32]} 33. Rxg7+ {[%clk 0:00:57]}  Kxg7 {[%clk 0:00:29]} 34. Qxd1 {[%clk 0:00:57]}  g4 {[%clk 0:00:19]} 35. Qa4 {[%clk 0:00:52]}  h5 {[%clk 0:00:18]} 36. Qa7 {[%clk 0:00:45]}  Bc8 {[%clk 0:00:16]} 37. Ba5 {[%clk 0:00:43]}  Qd7 {[%clk 0:00:16]} 38. Qb8 {[%clk 0:00:38]}  Qe7 {[%clk 0:00:14]} 39. Qc7 {[%clk 0:00:31]}  Qxc7 {[%clk 0:00:11]} 40. Bxc7 {[%clk 0:00:31]}  Kf6 {[%clk 0:00:09]} 41. Bxd6 {[%clk 0:00:31]}  b6 {[%clk 0:00:04]} 42. Bc7 {[%clk 0:00:31]}  Ke7 {[%clk 0:00:05]} 43. Bxb6 {[%clk 0:00:27]}  Kd6 {[%clk 0:00:06]} 44. Ke2 {[%clk 0:00:25]}  Bb7 {[%clk 0:00:05]} 45. Kd2 {[%clk 0:00:24]}  Bc8 {[%clk 0:00:05]} 46. Kc2 {[%clk 0:00:24]}  Bb7 {[%clk 0:00:05]} 47. Kb3 {[%clk 0:00:25]}  Ba8 {[%clk 0:00:05]} 48. Ka4 {[%clk 0:00:25]}  Bb7 {[%clk 0:00:05]} 49. Ka5 {[%clk 0:00:25]}  Bxd5 {[%clk 0:00:04]} 50. cxd5 {[%clk 0:00:19]}  Kxd5 {[%clk 0:00:04]} 51. Ba7 {[%clk 0:00:17]}  c4 {[%clk 0:00:04]} 52. dxc4+ {[%clk 0:00:17]}  Kxc4 {[%clk 0:00:05]} 53. Bxd4 {[%clk 0:00:16]}  Kxd4 {[%clk 0:00:05]} 54. b6 {[%clk 0:00:16]}  Ke4 {[%clk 0:00:04]} 55. b7 {[%clk 0:00:17]}  Kf3 {[%clk 0:00:05]} 56. b8=Q {[%clk 0:00:18]}  Kg2 {[%clk 0:00:04]} 57. Qe5 {[%clk 0:00:19]}  Kh3 {[%clk 0:00:05]} 58. Qxf5 {[%clk 0:00:19]}  h4 {[%clk 0:00:05]} 59. gxh4 {[%clk 0:00:17]}  Kxh4 {[%clk 0:00:04]} 60. Qg5+ {[%clk 0:00:16]}  Kh3 {[%clk 0:00:04]} 61. f5 {[%clk 0:00:16]}  Kxh2 {[%clk 0:00:02]} 62. Qxg4 {[%clk 0:00:16]}  Kh1 {[%clk 0:00:00]} 63. f6 {[%clk 0:00:16]} 1-0


[Site "https://www.chess.com"]

[Event "Titled Tuesday Blitz July 18 Late 2023"]
[White "Sainz Aguirre, Ignacio"]
[Black "Kostiukov, Alexandr"]
[WhiteFideId "5101727"]
[BlackFideId "14108100"]
[WhiteElo "1968"]
[BlackElo "2349"]
[Result "0-1"]
[Round "3"]
[TimeControl "180+2"]
[Date "2023.07.18"]
[WhiteClock "0:00:03"]
[BlackClock "0:00:35"]
[Board "190"]

1. e4 {[%clk 0:03:00]}  c5 {[%clk 0:02:59]} 2. Nf3 {[%clk 0:03:00]}  g6 {[%clk 0:02:59]} 3. c3 {[%clk 0:02:59]}  Bg7 {[%clk 0:02:58]} 4. d4 {[%clk 0:02:59]}  cxd4 {[%clk 0:02:59]} 5. cxd4 {[%clk 0:02:59]}  d5 {[%clk 0:02:56]} 6. e5 {[%clk 0:02:58]}  Nc6 {[%clk 0:02:56]} 7. Nc3 {[%clk 0:02:57]}  Bg4 {[%clk 0:02:56]} 8. Be3 {[%clk 0:02:54]}  Nh6 {[%clk 0:02:56]} 9. Bd3 {[%clk 0:02:48]}  O-O {[%clk 0:02:48]} 10. h3 {[%clk 0:02:46]}  Bxf3 {[%clk 0:02:41]} 11. Qxf3 {[%clk 0:02:45]}  e6 {[%clk 0:02:41]} 12. a3 {[%clk 0:02:37]}  f6 {[%clk 0:02:38]} 13. exf6 {[%clk 0:02:15]}  Rxf6 {[%clk 0:02:29]} 14. Qe2 {[%clk 0:02:04]}  Rf8 {[%clk 0:02:21]} 15. O-O {[%clk 0:02:00]}  Nf5 {[%clk 0:02:20]} 16. Bxf5 {[%clk 0:02:00]}  Rxf5 {[%clk 0:02:15]} 17. Qd3 {[%clk 0:01:53]}  Qh4 {[%clk 0:02:09]} 18. Ne2 {[%clk 0:01:30]}  Raf8 {[%clk 0:01:58]} 19. Rac1 {[%clk 0:01:12]}  a6 {[%clk 0:01:51]} 20. b4 {[%clk 0:01:10]}  Bh6 {[%clk 0:01:45]} 21. Bxh6 {[%clk 0:01:06]}  Qxh6 {[%clk 0:01:45]} 22. b5 {[%clk 0:00:57]}  axb5 {[%clk 0:01:42]} 23. Qxb5 {[%clk 0:00:56]}  R8f7 {[%clk 0:01:41]} 24. Rb1 {[%clk 0:00:51]}  Qh4 {[%clk 0:01:38]} 25. Ng3 {[%clk 0:00:41]}  R5f6 {[%clk 0:01:22]} 26. Rbd1 {[%clk 0:00:20]}  Nxd4 {[%clk 0:01:14]} 27. Qe8+ {[%clk 0:00:19]}  Rf8 {[%clk 0:01:08]} 28. Qe7 {[%clk 0:00:17]}  R8f7 {[%clk 0:01:07]} 29. Qe8+ {[%clk 0:00:17]}  Kg7 {[%clk 0:01:07]} 30. Rde1 {[%clk 0:00:12]}  Qf4 {[%clk 0:00:49]} 31. Kh2 {[%clk 0:00:11]}  h5 {[%clk 0:00:49]} 32. Kg1 {[%clk 0:00:10]}  h4 {[%clk 0:00:44]} 33. Ne2 {[%clk 0:00:09]}  Nxe2+ {[%clk 0:00:44]} 34. Rxe2 {[%clk 0:00:09]}  Qf5 {[%clk 0:00:43]} 35. Rfe1 {[%clk 0:00:07]}  d4 {[%clk 0:00:40]} 36. f3 {[%clk 0:00:08]}  d3 {[%clk 0:00:37]} 37. Rxe6 {[%clk 0:00:08]}  d2 {[%clk 0:00:36]} 38. Rxf6 {[%clk 0:00:03]}  dxe1=Q+ {[%clk 0:00:35]} 0-1


[Site "https://www.chess.com"]

[Event "Titled Tuesday Blitz July 18 Late 2023"]
[White "Dmitriev, Sergey"]
[Black "K2JW"]
[WhiteFideId "14101785"]
[WhiteElo "1960"]
[BlackElo "2343"]
[Result "0-1"]
[Round "3"]
[TimeControl "180+2"]
[Date "2023.07.18"]
[WhiteClock "0:00:25"]
[BlackClock "0:00:31"]
[Board "192"]

1. d4 {[%clk 0:02:58]}  d5 {[%clk 0:02:58]} 2. Nf3 {[%clk 0:02:57]}  Nf6 {[%clk 0:02:57]} 3. Bf4 {[%clk 0:02:58]}  c5 {[%clk 0:02:52]} 4. e3 {[%clk 0:02:56]}  Nc6 {[%clk 0:02:52]} 5. c3 {[%clk 0:02:55]}  e6 {[%clk 0:02:47]} 6. h3 {[%clk 0:02:55]}  Bd6 {[%clk 0:02:47]} 7. Bxd6 {[%clk 0:02:49]}  Qxd6 {[%clk 0:02:48]} 8. Nbd2 {[%clk 0:02:47]}  O-O {[%clk 0:02:38]} 9. Bd3 {[%clk 0:02:47]}  c4 {[%clk 0:02:01]} 10. Bc2 {[%clk 0:02:46]}  b5 {[%clk 0:02:01]} 11. a3 {[%clk 0:02:43]}  Bb7 {[%clk 0:01:59]} 12. O-O {[%clk 0:02:42]}  Ne7 {[%clk 0:01:53]} 13. Re1 {[%clk 0:02:41]}  Ne4 {[%clk 0:01:43]} 14. Ne5 {[%clk 0:02:34]}  f6 {[%clk 0:01:39]} 15. Nef3 {[%clk 0:02:32]}  a5 {[%clk 0:01:25]} 16. Nh2 {[%clk 0:02:30]}  e5 {[%clk 0:01:15]} 17. Nxe4 {[%clk 0:02:20]}  dxe4 {[%clk 0:01:15]} 18. dxe5 {[%clk 0:02:17]}  Qxe5 {[%clk 0:01:14]} 19. Qg4 {[%clk 0:02:07]}  f5 {[%clk 0:01:10]} 20. Qg5 {[%clk 0:02:02]}  h6 {[%clk 0:01:08]} 21. Qh5 {[%clk 0:01:58]}  Nd5 {[%clk 0:00:50]} 22. g3 {[%clk 0:01:49]}  b4 {[%clk 0:00:46]} 23. axb4 {[%clk 0:01:46]}  axb4 {[%clk 0:00:47]} 24. Rxa8 {[%clk 0:01:13]}  Bxa8 {[%clk 0:00:43]} 25. g4 {[%clk 0:01:02]}  bxc3 {[%clk 0:00:38]} 26. gxf5 {[%clk 0:00:52]}  cxb2 {[%clk 0:00:38]} 27. Bb1 {[%clk 0:00:39]}  Nc3 {[%clk 0:00:34]} 28. f4 {[%clk 0:00:38]}  exf3 {[%clk 0:00:32]} 29. Nxf3 {[%clk 0:00:36]}  Qg3+ {[%clk 0:00:31]} 30. Kf1 {[%clk 0:00:34]}  Bxf3 {[%clk 0:00:30]} 31. Qg6 {[%clk 0:00:30]}  Qxg6 {[%clk 0:00:30]} 32. fxg6 {[%clk 0:00:31]}  Nxb1 {[%clk 0:00:30]} 33. Rxb1 {[%clk 0:00:27]}  Be4+ {[%clk 0:00:30]} 34. Ke1 {[%clk 0:00:25]}  Bxb1 {[%clk 0:00:31]} 0-1


[Site "https://www.chess.com"]

[Event "Titled Tuesday Blitz July 18 Late 2023"]
[White "Svane, Frederik"]
[Black "Elsa167"]
[WhiteFideId "12923044"]
[WhiteElo "2974"]
[BlackElo "2793"]
[Result "1-0"]
[Round "4"]
[TimeControl "180+2"]
[Date "2023.07.18"]
[WhiteClock "0:00:29"]
[BlackClock "0:00:00"]
[Board "9"]

1. c4 {[%clk 0:03:00]}  e6 {[%clk 0:02:59]} 2. g3 {[%clk 0:03:01]}  d5 {[%clk 0:02:57]} 3. Bg2 {[%clk 0:03:01]}  Nf6 {[%clk 0:02:58]} 4. Nf3 {[%clk 0:03:02]}  Be7 {[%clk 0:02:59]} 5. O-O {[%clk 0:03:02]}  O-O {[%clk 0:02:59]} 6. d4 {[%clk 0:03:02]}  Nbd7 {[%clk 0:02:59]} 7. Nc3 {[%clk 0:03:01]}  dxc4 {[%clk 0:02:57]} 8. e4 {[%clk 0:02:58]}  b5 {[%clk 0:02:53]} 9. e5 {[%clk 0:02:20]}  Nd5 {[%clk 0:02:53]} 10. Nxb5 {[%clk 0:02:20]}  Bb7 {[%clk 0:02:53]} 11. Qe2 {[%clk 0:02:16]}  N7b6 {[%clk 0:02:52]} 12. Rd1 {[%clk 0:02:11]}  a6 {[%clk 0:02:45]} 13. Nc3 {[%clk 0:02:10]}  Nxc3 {[%clk 0:02:45]} 14. bxc3 {[%clk 0:02:11]}  Bd5 {[%clk 0:02:39]} 15. h4 {[%clk 0:02:08]}  h6 {[%clk 0:02:37]} 16. a4 {[%clk 0:01:58]}  a5 {[%clk 0:02:36]} 17. Be3 {[%clk 0:01:41]}  Re8 {[%clk 0:02:36]} 18. Qc2 {[%clk 0:01:41]}  Rb8 {[%clk 0:02:29]} 19. Rdb1 {[%clk 0:01:41]}  Qd7 {[%clk 0:02:28]} 20. Rb5 {[%clk 0:01:37]}  Ra8 {[%clk 0:02:18]} 21. Ne1 {[%clk 0:01:36]}  Reb8 {[%clk 0:02:04]} 22. Rab1 {[%clk 0:01:32]}  Rc8 {[%clk 0:01:34]} 23. Qa2 {[%clk 0:01:23]}  Qc6 {[%clk 0:01:27]} 24. Bc1 {[%clk 0:01:21]}  Bxg2 {[%clk 0:01:17]} 25. Nxg2 {[%clk 0:01:21]}  Nd5 {[%clk 0:01:17]} 26. Bd2 {[%clk 0:01:17]}  Nb6 {[%clk 0:01:07]} 27. Ne3 {[%clk 0:01:15]}  h5 {[%clk 0:01:02]} 28. Bc1 {[%clk 0:01:13]}  Nd5 {[%clk 0:00:52]} 29. Nxd5 {[%clk 0:01:07]}  exd5 {[%clk 0:00:53]} 30. Ba3 {[%clk 0:01:07]}  Bxa3 {[%clk 0:00:53]} 31. Qxa3 {[%clk 0:01:08]}  Qe6 {[%clk 0:00:52]} 32. Qc5 {[%clk 0:01:05]}  c6 {[%clk 0:00:50]} 33. Rb7 {[%clk 0:01:05]}  Qf5 {[%clk 0:00:43]} 34. Qd6 {[%clk 0:00:54]}  Qe6 {[%clk 0:00:11]} 35. R1b6 {[%clk 0:00:32]}  Qxd6 {[%clk 0:00:08]} 36. exd6 {[%clk 0:00:33]}  Kf8 {[%clk 0:00:09]} 37. d7 {[%clk 0:00:33]}  Rd8 {[%clk 0:00:08]} 38. Rxc6 {[%clk 0:00:33]}  Ke7 {[%clk 0:00:08]} 39. Rc5 {[%clk 0:00:31]}  Rab8 {[%clk 0:00:06]} 40. Rxb8 {[%clk 0:00:30]}  Rxb8 {[%clk 0:00:06]} 41. Rxd5 {[%clk 0:00:31]}  Kd8 {[%clk 0:00:05]} 42. Rc5 {[%clk 0:00:31]}  Rb4 {[%clk 0:00:00]} 43. cxb4 {[%clk 0:00:29]} 1-0


[Site "https://www.chess.com"]

[Event "Titled Tuesday Blitz July 18 Late 2023"]
[White "Morefield, Jason"]
[Black "Pranav, V"]
[WhiteFideId "30920825"]
[BlackFideId "25060783"]
[WhiteElo "2768"]
[BlackElo "2974"]
[Result "0-1"]
[Round "4"]
[TimeControl "180+2"]
[Date "2023.07.18"]
[WhiteClock "0:00:03"]
[BlackClock "0:00:11"]
[Board "10"]

1. e4 {[%clk 0:03:00]}  c6 {[%clk 0:02:58]} 2. Nf3 {[%clk 0:03:00]}  d5 {[%clk 0:02:59]} 3. Nc3 {[%clk 0:03:01]}  Bg4 {[%clk 0:02:58]} 4. h3 {[%clk 0:03:01]}  Bxf3 {[%clk 0:02:58]} 5. Qxf3 {[%clk 0:03:01]}  e6 {[%clk 0:02:59]} 6. Be2 {[%clk 0:03:02]}  Nd7 {[%clk 0:02:58]} 7. d4 {[%clk 0:03:00]}  dxe4 {[%clk 0:02:59]} 8. Nxe4 {[%clk 0:03:00]}  Ngf6 {[%clk 0:02:59]} 9. O-O {[%clk 0:02:59]}  Be7 {[%clk 0:03:00]} 10. Rd1 {[%clk 0:02:54]}  O-O {[%clk 0:02:59]} 11. Bf4 {[%clk 0:02:47]}  Nxe4 {[%clk 0:02:53]} 12. Qxe4 {[%clk 0:02:47]}  Nf6 {[%clk 0:02:53]} 13. Qf3 {[%clk 0:02:46]}  Nd5 {[%clk 0:02:53]} 14. Bd2 {[%clk 0:02:43]}  Bg5 {[%clk 0:02:52]} 15. Be1 {[%clk 0:02:40]}  Re8 {[%clk 0:02:44]} 16. Bf1 {[%clk 0:02:39]}  Qc7 {[%clk 0:02:40]} 17. g3 {[%clk 0:02:39]}  Rad8 {[%clk 0:02:30]} 18. h4 {[%clk 0:02:38]}  Bf6 {[%clk 0:02:29]} 19. a4 {[%clk 0:02:34]}  a5 {[%clk 0:02:27]} 20. Bc4 {[%clk 0:02:27]}  b6 {[%clk 0:02:21]} 21. c3 {[%clk 0:02:22]}  Ne7 {[%clk 0:02:18]} 22. Bd3 {[%clk 0:02:19]}  e5 {[%clk 0:02:00]} 23. dxe5 {[%clk 0:02:16]}  Bxe5 {[%clk 0:02:01]} 24. Bd2 {[%clk 0:02:05]}  g6 {[%clk 0:01:50]} 25. Bg5 {[%clk 0:01:59]}  Bg7 {[%clk 0:01:40]} 26. Bc4 {[%clk 0:01:53]}  Rxd1+ {[%clk 0:01:39]} 27. Rxd1 {[%clk 0:01:54]}  Nf5 {[%clk 0:01:40]} 28. g4 {[%clk 0:01:42]}  Nh6 {[%clk 0:01:34]} 29. Kg2 {[%clk 0:01:29]}  Rf8 {[%clk 0:01:21]} 30. Re1 {[%clk 0:01:22]}  Kh8 {[%clk 0:01:07]} 31. Qg3 {[%clk 0:00:44]}  Qc8 {[%clk 0:00:59]} 32. f3 {[%clk 0:00:32]}  Ng8 {[%clk 0:00:59]} 33. Be3 {[%clk 0:00:24]}  Qb7 {[%clk 0:00:52]} 34. Qd6 {[%clk 0:00:20]}  Re8 {[%clk 0:00:42]} 35. Bf2 {[%clk 0:00:20]}  Rxe1 {[%clk 0:00:39]} 36. Bxe1 {[%clk 0:00:21]}  h6 {[%clk 0:00:25]} 37. Bf2 {[%clk 0:00:20]}  Nf6 {[%clk 0:00:23]} 38. Qd8+ {[%clk 0:00:18]}  Kh7 {[%clk 0:00:23]} 39. Qxb6 {[%clk 0:00:18]}  Qd7 {[%clk 0:00:18]} 40. Qxa5 {[%clk 0:00:09]}  Nxg4 {[%clk 0:00:16]} 41. Qa7 {[%clk 0:00:04]}  Qc8 {[%clk 0:00:16]} 42. Bc5 {[%clk 0:00:03]}  Ne5 {[%clk 0:00:14]} 43. Be2 {[%clk 0:00:03]}  Qe6 {[%clk 0:00:11]} 44. Bf2 {[%clk 0:00:03]}  Nd7 {[%clk 0:00:09]} 45. Bd3 {[%clk 0:00:02]}  Nf6 {[%clk 0:00:09]} 46. Qe3 {[%clk 0:00:03]}  Qd7 {[%clk 0:00:09]} 47. Be4 {[%clk 0:00:03]}  Nh5 {[%clk 0:00:09]} 48. Qe1 {[%clk 0:00:01]}  Be5 {[%clk 0:00:10]} 49. Bg1 {[%clk 0:00:01]}  Nf4+ {[%clk 0:00:10]} 50. Kf2 {[%clk 0:00:01]}  Qh3 {[%clk 0:00:10]} 51. Ke3 {[%clk 0:00:02]}  Ng2+ {[%clk 0:00:10]} 52. Ke2 {[%clk 0:00:02]}  Nxe1 {[%clk 0:00:11]} 53. Kxe1 {[%clk 0:00:03]}  Bh2 {[%clk 0:00:11]} 0-1


[Site "https://www.chess.com"]

[Event "Titled Tuesday Blitz July 18 Late 2023"]
[White "Matlakov, Maxim"]
[Black "Vetoshko, Volodymyr"]
[WhiteFideId "4168003"]
[BlackFideId "14122480"]
[WhiteElo "2951"]
[BlackElo "2700"]
[Result "1-0"]
[Round "4"]
[TimeControl "180+2"]
[Date "2023.07.18"]
[WhiteClock "0:00:36"]
[BlackClock "0:00:00"]
[Board "15"]

1. d4 {[%clk 0:02:59]}  d5 {[%clk 0:02:59]} 2. Nf3 {[%clk 0:02:58]}  e6 {[%clk 0:02:58]} 3. e3 {[%clk 0:02:59]}  Nf6 {[%clk 0:02:56]} 4. Bd3 {[%clk 0:02:58]}  b6 {[%clk 0:02:56]} 5. O-O {[%clk 0:02:58]}  Bb7 {[%clk 0:02:56]} 6. Nbd2 {[%clk 0:02:54]}  Nbd7 {[%clk 0:02:56]} 7. Qe2 {[%clk 0:02:53]}  c5 {[%clk 0:02:49]} 8. b3 {[%clk 0:02:53]}  Bd6 {[%clk 0:02:44]} 9. Bb2 {[%clk 0:02:53]}  O-O {[%clk 0:02:44]} 10. c4 {[%clk 0:02:44]}  Qe7 {[%clk 0:02:38]} 11. Rad1 {[%clk 0:02:42]}  Rad8 {[%clk 0:02:30]} 12. Rfe1 {[%clk 0:02:42]}  Ne4 {[%clk 0:02:24]} 13. Bb1 {[%clk 0:02:38]}  f5 {[%clk 0:02:21]} 14. cxd5 {[%clk 0:02:33]}  exd5 {[%clk 0:02:21]} 15. dxc5 {[%clk 0:02:30]}  bxc5 {[%clk 0:02:22]} 16. Nf1 {[%clk 0:02:29]}  Ndf6 {[%clk 0:02:11]} 17. Ng3 {[%clk 0:02:28]}  Nxg3 {[%clk 0:02:05]} 18. hxg3 {[%clk 0:02:29]}  Ne4 {[%clk 0:02:05]} 19. Bd3 {[%clk 0:02:28]}  Ba8 {[%clk 0:01:53]} 20. Nh4 {[%clk 0:02:27]}  Bxg3 {[%clk 0:01:40]} 21. Bxe4 {[%clk 0:01:52]}  Bxh4 {[%clk 0:01:35]} 22. Bf3 {[%clk 0:01:52]}  Bf6 {[%clk 0:01:31]} 23. Bxf6 {[%clk 0:01:46]}  Rxf6 {[%clk 0:01:32]} 24. Rd2 {[%clk 0:01:46]}  Rfd6 {[%clk 0:01:16]} 25. Rc1 {[%clk 0:01:38]}  Rh6 {[%clk 0:00:57]} 26. g3 {[%clk 0:01:35]}  Rb6 {[%clk 0:00:42]} 27. Bg2 {[%clk 0:01:32]}  Bb7 {[%clk 0:00:42]} 28. Qd3 {[%clk 0:01:20]}  g6 {[%clk 0:00:39]} 29. Qc3 {[%clk 0:01:17]}  d4 {[%clk 0:00:22]} 30. Qxc5 {[%clk 0:01:16]}  Qxc5 {[%clk 0:00:21]} 31. Rxc5 {[%clk 0:01:17]}  Bxg2 {[%clk 0:00:22]} 32. Kxg2 {[%clk 0:01:18]}  d3 {[%clk 0:00:15]} 33. Rc7 {[%clk 0:01:00]}  a6 {[%clk 0:00:13]} 34. Kf3 {[%clk 0:01:00]}  Rbd6 {[%clk 0:00:12]} 35. Kf4 {[%clk 0:00:57]}  Rd5 {[%clk 0:00:10]} 36. Kg5 {[%clk 0:00:56]}  a5 {[%clk 0:00:08]} 37. Kh6 {[%clk 0:00:56]}  R8d7 {[%clk 0:00:05]} 38. Rxd7 {[%clk 0:00:44]}  Rxd7 {[%clk 0:00:06]} 39. Kg5 {[%clk 0:00:44]}  Kf7 {[%clk 0:00:07]} 40. Kf4 {[%clk 0:00:45]}  Kf6 {[%clk 0:00:05]} 41. e4 {[%clk 0:00:45]}  Rd4 {[%clk 0:00:05]} 42. f3 {[%clk 0:00:45]}  fxe4 {[%clk 0:00:05]} 43. fxe4 {[%clk 0:00:46]}  h5 {[%clk 0:00:02]} 44. Rf2 {[%clk 0:00:35]}  g5+ {[%clk 0:00:02]} 45. Ke3+ {[%clk 0:00:36]}  Ke5 {[%clk 0:00:01]} 46. Rf5+ {[%clk 0:00:36]}  Ke6 {[%clk 0:00:00]} 47. Kxd4 {[%clk 0:00:36]} 1-0


[Site "https://www.chess.com"]

[Event "Titled Tuesday Blitz July 18 Late 2023"]
[White "Zhigalko, Sergei"]
[Black "Manon-og, Ramon Jr."]
[WhiteFideId "13502956"]
[BlackFideId "5200776"]
[WhiteElo "2895"]
[BlackElo "2328"]
[Result "1-0"]
[Round "4"]
[TimeControl "180+2"]
[Date "2023.07.18"]
[WhiteClock "0:02:44"]
[BlackClock "0:00:45"]
[Board "18"]

1. e4 {[%clk 0:03:00]}  c5 {[%clk 0:02:59]} 2. Nf3 {[%clk 0:03:01]}  d6 {[%clk 0:03:00]} 3. d4 {[%clk 0:03:01]}  cxd4 {[%clk 0:03:01]} 4. Qxd4 {[%clk 0:03:02]}  Nc6 {[%clk 0:03:01]} 5. Bb5 {[%clk 0:03:02]}  Bd7 {[%clk 0:03:01]} 6. Bxc6 {[%clk 0:03:02]}  Bxc6 {[%clk 0:03:01]} 7. Nc3 {[%clk 0:03:03]}  e5 {[%clk 0:02:56]} 8. Qd3 {[%clk 0:03:02]}  h6 {[%clk 0:02:57]} 9. Nd2 {[%clk 0:03:02]}  Nf6 {[%clk 0:02:55]} 10. Nc4 {[%clk 0:03:03]}  Be7 {[%clk 0:02:56]} 11. Ne3 {[%clk 0:03:03]}  O-O {[%clk 0:02:56]} 12. Nf5 {[%clk 0:03:03]}  Qd7 {[%clk 0:02:50]} 13. Bxh6 {[%clk 0:02:46]}  gxh6 {[%clk 0:00:45]} 14. Qg3+ {[%clk 0:02:44]} 1-0


[Site "https://www.chess.com"]

[Event "Titled Tuesday Blitz July 18 Late 2023"]
[White "Naroditsky, Daniel"]
[Black "Wu, Sibo"]
[WhiteFideId "2026961"]
[BlackFideId "8606048"]
[WhiteElo "3134"]
[BlackElo "2436"]
[Result "1-0"]
[Round "4"]
[TimeControl "180+2"]
[Date "2023.07.18"]
[WhiteClock "0:01:23"]
[BlackClock "0:00:08"]
[Board "19"]

1. e4 {[%clk 0:03:00]}  c5 {[%clk 0:02:55]} 2. c3 {[%clk 0:03:00]}  d5 {[%clk 0:02:53]} 3. exd5 {[%clk 0:03:01]}  Qxd5 {[%clk 0:02:53]} 4. d4 {[%clk 0:03:02]}  Nf6 {[%clk 0:02:50]} 5. Nf3 {[%clk 0:03:02]}  e6 {[%clk 0:02:48]} 6. Na3 {[%clk 0:03:03]}  Nc6 {[%clk 0:02:29]} 7. Be3 {[%clk 0:03:02]}  cxd4 {[%clk 0:02:27]} 8. Nb5 {[%clk 0:03:03]}  Qd8 {[%clk 0:02:27]} 9. Nbxd4 {[%clk 0:03:00]}  Bd7 {[%clk 0:02:13]} 10. Nxc6 {[%clk 0:02:43]}  Bxc6 {[%clk 0:02:13]} 11. Ne5 {[%clk 0:02:44]}  Be7 {[%clk 0:01:39]} 12. Nxc6 {[%clk 0:02:38]}  bxc6 {[%clk 0:01:39]} 13. Qa4 {[%clk 0:02:38]}  Qc7 {[%clk 0:01:25]} 14. Be2 {[%clk 0:02:30]}  Nd5 {[%clk 0:01:19]} 15. Bd2 {[%clk 0:02:27]}  O-O {[%clk 0:01:18]} 16. O-O {[%clk 0:02:28]}  Rab8 {[%clk 0:01:11]} 17. Qc2 {[%clk 0:02:20]}  Rfd8 {[%clk 0:01:05]} 18. Rad1 {[%clk 0:02:15]}  Bd6 {[%clk 0:00:57]} 19. g3 {[%clk 0:02:16]}  Bc5 {[%clk 0:00:52]} 20. a3 {[%clk 0:02:10]}  a5 {[%clk 0:00:52]} 21. b4 {[%clk 0:02:09]}  Bb6 {[%clk 0:00:50]} 22. c4 {[%clk 0:02:05]}  Nf6 {[%clk 0:00:47]} 23. Bf3 {[%clk 0:01:48]}  Bd4 {[%clk 0:00:43]} 24. Kg2 {[%clk 0:01:47]}  e5 {[%clk 0:00:42]} 25. bxa5 {[%clk 0:01:41]}  Rb2 {[%clk 0:00:39]} 26. Qf5 {[%clk 0:01:36]}  e4 {[%clk 0:00:24]} 27. Bxe4 {[%clk 0:01:34]}  g6 {[%clk 0:00:24]} 28. Qf3 {[%clk 0:01:31]}  c5 {[%clk 0:00:15]} 29. Bg5 {[%clk 0:01:24]}  Nxe4 {[%clk 0:00:08]} 30. Bxd8 {[%clk 0:01:23]} 1-0


[Site "https://www.chess.com"]